{"text_format":"1","workbook":"xlsx","n_sheets":3,"sheets":["ورقة1","ورقة2","ورقة3"],"not_rendered":{"charts":0,"images":0,"macros":1,"external_links":0,"defined_names":2,"comments":0,"pivot_tables":0},"unopened":[],"bounds":{"document_bytes":16777216,"sheet_cells":100000,"rows_first":2000,"rows_last":500,"rows_between":2000,"halvings":0,"cell_chars":16384,"cell_head_chars":4096},"cells_cut":0,"cells_raw":0,"read":"whole","date_system":"1900"}

{"sheet":"ورقة1","index":0,"n_rows":48,"n_cols":7,"rows_kept":48,"cut":false,"hidden":false,"merged":[[3,1,3,5],[4,1,4,5],[9,6,9,9],[10,6,10,9],[11,6,11,9],[12,6,12,9],[3,6,3,11],[4,6,8,11],[13,6,13,9],[14,6,14,9],[15,6,15,9],[0,0,0,1],[1,0,1,1],[1,2,1,3],[1,4,1,5],[2,0,2,1],[2,2,2,3],[2,4,2,5]]}
["مديرية التربية والتعليم بالمنيا"]
["ادارة المنيا التعليمية "]
["مدرسة أبو بكر الصديق الإبتدائية "]
[null,"سجل تقييم درجات الصف السادس الإبتدائى فصل (      /     )",null,null,null,null,"بعد اذن حضراتكم"]
[null,"الفصل الدراسى   الأول  للعام الدراسى  2021 / 2022 ",null,null,null,null,"المطلوب عند كتابة الدرجة للطالب يتم فى العمود المجاور له تفقيط الدرجة وفى العمود التالى تقدير الدرجة "]
[]
[null,"الاسم","الدرجة ","التفقيط","التقدير ","الترتيب"]
[]
[1,"احمد محمد احمد",100,{"$f":"NoToTxt(C9,\"\",\"\")","v":"مائة  "},{"$f":"IF(C9>84.5,\"ممتاز\",IF(C9>74.5,\"جيد جداً\",IF(C9>64.5,\"جيد\",IF(C9>49.5,\"مقبول\",\"ضعيف\"))))","v":"ممتاز"},{"$f":"RANK(C9,$C$9:$C$48,0)","v":1}]
[2,"احمد محمود ابراهيم عبد الرحيم",85,{"$f":"NoToTxt(C10,\"\",\"\")","v":"خمسة وثمانون  "},{"$f":"IF(C10>84.5,\"ممتاز\",IF(C10>74.5,\"جيد جداً\",IF(C10>64.5,\"جيد\",IF(C10>49.5,\"مقبول\",\"ضعيف\"))))","v":"ممتاز"},{"$f":"RANK(C10,$C$9:$C$48,0)","v":4},"والتقدير كالتالى :"]
[3,"ادم مؤمن محمد جلال",84.5,"أربعة وثمانون  وخمسون  ","جيد جداً",6,"من 100 : 85 ممتاز "]
[4,"ايهاب مصطفى مصطفى توفيق",84,"أربعة وثمانون  ","جيد جداً",8,"من 84.5 : 75 جيد جدا"]
[5,"توماس ماجد عياد",65,"خمسة وستون  ","جيد",14,"ومن 74.5 : 65 جيد"]
[6,"سيف ابوخالد قطب على",64.5,"أربعة وستون  وخمسون  ","مقبول",15,"ومن 64.5 : 50 مقبول"]
[7,"عبد العزيز احمد عبد الوهاب",74.5,"أربعة وسبعون  وخمسون  ","جيد",11,"ومن 49.5 : 0 ضعيف "]
[8,"عبد الله على محمود ابو الليل",75,"خمسة وسبعون  ","جيد جداً",10,"ولكم جزيل الشكر والعرفان "]
[9,"عبد الله محمد نشأت عبد الله",64.5,"أربعة وستون  وخمسون  ","مقبول",15]
[10,"عمر احمد محمد عبد السلام",50,"خمسون  ","مقبول",20]
[11,"عمر جبر الجمل جبر",49.5,"تسعة وأربعون  وخمسون  ","ضعيف",26]
[12,"عمر محمد محمود عبد الرحيم",49,"تسعة وأربعون  ","ضعيف",28]
[13,"عمر مصطفى مجاهد عبد العزيز",20,"عشرون  ","ضعيف",37]
[14,"محمد حمدى يوسف اسماعيل",25,"خمسة وعشرون  ","ضعيف",35]
[15,"محمد عربى محمد عبد الغنى",26,"ستة وعشرون  ","ضعيف",33]
[16,"محمد محمد السيد عثمان",28,"ثمانية وعشرون  ","ضعيف",32]
[17,"محمد عمرو محمد خميس",33,"ثلاثة وثلاثون  ","ضعيف",30]
[18,"محمود حماده سعيد يوسف",50,"خمسون  ","مقبول",20]
[19,"محمود هشام فاروق حسين",50,"خمسون  ","مقبول",20]
[20,"مروان محمد عصام الدين جلال",60,"ستون  ","مقبول",17]
[21,"مروان محمود عمر محمد",54,"أربعة وخمسون  ","مقبول",19]
[22,"مؤيد رمضان محمد انور",100,"مائة  ","ممتاز",1]
[23,"مهند مصطفى سيد محمد",99.5,"تسعة وتسعون  وخمسون  ","ممتاز",3]
[24,"مينا ماجد عياد",50,"خمسون  ","مقبول",20]
[25,"مينا نادى صالح سمسوم",70,"سبعون  ","جيد",12]
[26,"ياسين صلاح عبد الباقى",80,"ثمانون  ","جيد جداً",9]
[27,"يوسف جمال السيد احمد على",85,"خمسة وثمانون  ","ممتاز",4]
[28,"يوسف سيد احمد عبد الرحيم",84.5,"أربعة وثمانون  وخمسون  ","جيد جداً",6]
[29,"يوسف عبد العال احمد عبد الرحيم",70,"سبعون  ","جيد",12]
[30,"يوسف مجدى وليم صادق",50,"خمسون  ","مقبول",20]
[31,"امل احمد مصطفى دردير ",60,"ستون  ","مقبول",17]
[32,"جومانا صموئيل فاروق مترى",33,"ثلاثة وثلاثون  ","ضعيف",30]
[33,"ريتاج محمد سيد",20,"عشرون  ","ضعيف",37]
[34,"سارة ياسر محمود عمار",20,"عشرون  ","ضعيف",37]
[35,"سلمى طارق زغلول محمد",25,"خمسة وعشرون  ","ضعيف",35]
[36,"سلينا سليمان نودى",0,"صفر","ضعيف",40]
[37,"ليالى احمد ممدوح ابراهيم",49.5,"تسعة وأربعون  وخمسون  ","ضعيف",26]
[38,"لوريان امجد فهيم تكلا",49,"تسعة وأربعون  ","ضعيف",28]
[39,"مريم محمد احمد كمال",26,"ستة وعشرون  ","ضعيف",33]
[40,"مريم محمد عمر محمود",50,"خمسون  ","مقبول",20]

{"sheet":"ورقة2","index":1,"n_rows":0,"n_cols":0,"rows_kept":0,"cut":false,"hidden":false,"merged":[]}

{"sheet":"ورقة3","index":2,"n_rows":0,"n_cols":0,"rows_kept":0,"cut":false,"hidden":false,"merged":[]}